Cogmind - Beta 11.1 @@@ ROGUE MODE // 2022.05.27 @ 17:21:30 Player: Decinym Result: Destroyed by P-60 Hacker with Shock Rifle Performance ------------- Evolutions (3) 1500 Regions Visited (8) 1600 Robots Destroyed (121) 605 Value Destroyed (3324) 3324 Prototype IDs (41) 820 Alien Tech Used (0) 0 Bonus (603) 603 TOTAL SCORE: 8452 Bonus ------- High Alert Combat Kills 239 Follower Combat Kills 64 Aligned with FarCom 300 Cogmind --------- Core Integrity 0/700 Matter 111/300 Energy 117/200 System Corruption 15% Temperature Cool (3) Movement Hovering (66) Location -7/Factory Parts ------- > --- POWER (1) -------- Cold Fusion Reactor > --- PROPULSION (4) --- Gravmag System Combat Antigrav System > --- UTILITY (6) ------ Advanced Visual Processing Unit Experimental Targeting Computer > --- WEAPON (2) ------- Cooled Proton Cannon > --- INVENTORY (5) ---- Advanced Weapon Cycler System Purifier Improved EM Pulse Cannon Plasma Cutter Power Maul Peak State ------------ > --- POWER ------------ Reinforced Fission Core > --- PROPULSION ------- Makeshift Leg Advanced Myomer Leg Advanced Myomer Leg > --- UTILITY ---------- Experimental Heat Sink Huge Storage Unit Advanced Transmission Jammer Hardened Light Armor Plating Medium Reactive Plating > --- WEAPON ----------- Heavy Particle Gun 8R-AWN's Boregun > --- INVENTORY -------- Cold Fusion Reactor Makeshift Leg Combat Antigrav System High-capacity Storage Unit High-capacity Matter Pod Experimental Sensor Array Improved Signal Interpreter Experimental Targeting Computer Experimental Core Analyzer Improved Armor Integrity Analyzer Advanced Weapon Cycler Medium Reactive Plating Improved System Guard System Purifier AS-neutralizer No. 17b Precision Shock Rifle Precision Shock Rifle EM Pulse Cannon Improved Assault Rifle 8R-AWN's Boregun Shock Bomb Launcher Rocket Launcher Plasma Cutter [Rating: 73] Favorites ----------- Power Ion Engine Engine Ion Engine Power Core Reinforced Fission Core Reactor Cold Fusion Reactor Propulsion Light Treads Treads Light Treads Leg Advanced Myomer Leg Wheel Wheel Hover Unit Combat Antigrav System Utility Hardened Light Armor Plating Device Improved Heat Sink Storage High-capacity Storage Unit Processor Targeting Computer Protection Hardened Light Armor Plating Weapon Improved Assault Rifle Energy Gun Heavy Particle Gun Energy Cannon Heavy Ion Cannon Ballistic Gun Improved Assault Rifle Ballistic Cannon Improved Light Cannon Launcher Rocket Launcher Special Weapon Plasma Cutter Build | -11 -10 -10 -9 -9 -9 -8 -8 -7 ------- Run | Scr Mat Min Mat Min Exi Min Mat Fac Slots Evolved 6 | . . . 2 . . . 2 2 Power . | . . . . . . . . . Propulsion 2 | . . . . . . . 1 1 Utility 4 | . . . 2 . . . 1 1 Weapon . | . . . . . . . . . Parts Attached 145 | . 9 3 8 3 38 3 37 44 Power 8 | . . 1 . . 2 . 3 2 Engine 3 | . . 1 . . 1 . 1 . Core 3 | . . . . . . . 2 1 Reactor 2 | . . . . . 1 . . 1 Propulsion 22 | . 3 2 1 1 6 . 3 6 Treads 12 | . 3 2 1 1 4 . . 1 Leg 6 | . . . . . 2 . 3 1 Wheel 2 | . . . . . . . . 2 Hover 2 | . . . . . . . . 2 Flight . | . . . . . . . . . Utility 55 | . 3 . 3 2 18 3 16 10 Device 14 | . . . . . 6 . 5 3 Storage 4 | . 1 . 1 . 1 . . 1 Processor 6 | . . . 1 . 1 2 1 1 Hackware . | . . . . . . . . . Protection 31 | . 2 . 1 2 10 1 10 5 Artifact . | . . . . . . . . . Weapon 60 | . 3 . 4 . 12 . 15 26 Energy Gun 15 | . . . . . 1 . 8 6 Energy Cannon 13 | . . . . . . . . 13 Ballistic Gun 14 | . . . 2 . 7 . 4 1 Ballistic Cannon 5 | . 3 . 1 . 1 . . . Launcher 12 | . . . 1 . 2 . 3 6 Special Weapon 1 | . . . . . 1 . . . Impact Weapon . | . . . . . . . . . Slashing Weapon . | . . . . . . . . . Piercing Weapon . | . . . . . . . . . Special Melee Weapon . | . . . . . . . . . Unidentified Prototypes 14 | . . . 1 . 8 . 3 2 Parts Lost 44 | . . 1 . . 11 . 11 21 Power 5 | . . 1 . . 1 . 1 2 Propulsion 11 | . . . . . 4 . 2 5 Utility 13 | . . . . . 3 . 5 5 Weapon 15 | . . . . . 3 . 3 9 Highest Loss Streak 20 | . . 1 . . 6 . 4 20 To Critical Strikes 6 | . . . . . 5 . . 1 Average Slot Usage (%) 96 | . 89 100 100 100 98 100 95 89 Engine 8 | . 14 14 11 11 7 . 1 6 Reactor 1 | . . . . . 3 11 2 . Treads 13 | . 22 28 22 22 15 . . 1 Leg 10 | . 5 . . . 6 22 27 21 Device 4 | . . . . . 2 . 9 13 Storage 10 | . 14 14 11 11 11 11 9 6 Processor 6 | . . . 11 11 7 10 7 7 Protection 17 | . 4 14 22 22 21 22 15 11 Energy Gun 2 | . 9 . . . . . 8 1 Energy Cannon 1 | . . . . . . . . 12 Ballistic Gun 11 | . 9 . 8 22 20 22 7 . Ballistic Cannon 4 | . 8 28 13 . . . . . Naked Turns . | . . . . . . . . . Heaviest Build 148 | 14 60 60 65 63 115 113 148 146 Greatest Support 100 | 20 40 40 40 40 60 60 80 100 Greatest Overweight (x) 6 | . 2 1 1 1 2 1 1 6 Average Overweight (x) 1 | . . 1 1 1 1 1 1 1 Largest Inventory Capacity 25 | . 20 20 20 20 25 25 25 25 Average Capacity 21 | . 17 20 20 20 21 25 25 24 Most Carried 25 | . 18 20 20 20 25 25 25 25 Average Carried 20 | . 11 19 19 19 19 24 24 24 Final Capacity 25 | 8 20 20 20 20 25 25 25 5 Final Carried 25 | 6 18 20 20 20 25 25 24 5 Class Distribution -------------------- 65% | Mutant 34% | Scavenger-Mutant Dominant Class ---------------- Mutant | -10/Materials Mutant | -10/Mines Mutant | -9/Materials Mutant | -9/Mines Mutant | -9/Exiles Mutant | -8/Mines Scavenger-Mutant | -8/Materials Scavenger-Mutant | -7/Factory Resources | -11 -10 -10 -9 -9 -9 -8 -8 -7 ----------- Run | Scr Mat Min Mat Min Exi Min Mat Fac Matter Collected 3435 | 187 215 177 202 90 1290 157 683 434 Remotely . | . . . . . . . . . Salvage Created 4204 | . 375 27 291 234 485 133 1237 1422 Parts 305 | . 25 8 19 12 73 11 77 80 Haulers Intercepted 5 | . . . 1 . . . 3 1 Recyclers Shooed 3 | . 1 . . . . . . 2 Parts Field Recycled . | . . . . . . . . . Retrieved Matter . | . . . . . . . . . Parts Self-Destructed . | . . . . . . . . . Prevented . | . . . . . . . . . Kills | -11 -10 -10 -9 -9 -9 -8 -8 -7 ------- Run | Scr Mat Min Mat Min Exi Min Mat Fac Combat Hostiles Destroyed 88 | . 8 2 9 6 4 4 24 31 Guns 34 | . 7 . . 6 2 4 13 2 Cannons 26 | . 1 2 7 . . . . 16 AOE 28 | . . . 2 . 2 . 11 13 Classes Destroyed 19 | . 4 1 3 1 3 1 2 4 Worker 7 | . . . . 1 . 2 2 2 Builder 4 | . 1 . . . . . . 3 Tunneler 2 | . . 1 . . . . 1 . Hauler 5 | . . . 1 . . . 3 1 Recycler 5 | . 1 . . . . . 3 1 Operator 1 | . . . . . . . . 1 Turret 1 | . . . . . 1 . . . Watcher 3 | . . . . . . . 2 1 Swarmer 29 | . 3 2 . 2 . 3 10 9 Grunt 28 | . 5 . 6 3 . . 10 4 Brawler 3 | . . . 1 1 . . . 1 Protector 2 | . . . . . . . . 2 Sentry 10 | . . . 2 . . . 3 5 Specialist 2 | . . . . . . . . 2 Hunter 5 | . . . . . . 1 . 4 Programmer 4 | . . . . . . . . 4 Heavy 1 | . . . . . . . 1 . Zionite 6 | . . . . . 6 . . . Assembled 3 | . . . . . 3 . . . Best Kill Streak 7 | . 3 2 6 3 4 3 7 6 Combat Bots Only 6 | . 3 2 5 3 3 2 6 6 Max Kills in Single Turn 3 | . 1 1 2 1 1 2 3 3 Gunslinging . | . . . . . . . . . Exploded 3 | . . . 2 . 1 . 3 3 Melee . | . . . . . . . . . Uniques/NPCs Destroyed 4 | . . . . . 4 . . . 8R-AWN (-9/Exiles) EX-DEC (-9/Exiles) EX-BIN (-9/Exiles) EX-HEX (-9/Exiles) Combat | -11 -10 -10 -9 -9 -9 -8 -8 -7 -------- Run | Scr Mat Min Mat Min Exi Min Mat Fac Damage Taken 8371 | . 451 66 186 154 1763 191 1758 3802 Core 1237 | . 66 7 33 10 143 10 260 708 Absorbed by Shields 125 | . . . . . . . . 125 Regen/Repaired (Parts) 233 | . . . . . . . 233 . Core Remaining (%) 68 | 100 . 70 . . . 51 52 . Volleys Fired 411 | . 34 13 14 10 137 15 90 98 Largest 2 | . 2 2 2 2 2 2 2 2 Hottest 120 | . 78 78 78 46 75 46 112 120 Shots Fired 724 | . 68 27 26 20 239 30 152 162 Gun 510 | . 60 . . 20 221 30 145 34 Cannon 171 | . 8 27 24 . . . . 112 Launcher 38 | . . . 2 . 13 . 7 16 Special 5 | . . . . . 5 . . . Kinetic 439 | . 38 27 24 20 208 30 77 15 Thermal 221 | . 30 . . . 18 . 59 114 Explosive 35 | . . . 2 . 13 . 7 13 Electromagnetic 29 | . . . . . . . 9 20 Robot Hit Streak 52 | . 7 2 8 14 52 12 22 18 Robot Miss Streak 5 | . 5 4 2 1 4 3 4 3 Penetration Max 1 | . . . . . . . . 1 Secondary Targets 5 | . 2 . . 1 . 2 . . Max Gunslinging Chain 1 | . 1 . . 1 . 1 . . Shots Hit Robots 513 | . 38 6 16 15 182 19 115 122 Core Hits 242 | . 16 3 11 10 47 8 62 85 Critical Kills 1 | . . . . . 1 . . . Critical Parts Destroyed 6 | . . . . . . . . 6 Critical Strikes 12 | . . . 1 . 1 . 2 8 Burn 3 | . . . . . . . 2 1 Destroy 7 | . . . . . 1 . . 6 Blast 1 | . . . 1 . . . . . Corrupt 1 | . . . . . . . . 1 Melee Attacks . | . . . . . . . . . Impact . | . . . . . . . . . Slashing . | . . . . . . . . . Piercing . | . . . . . . . . . Sneak Attacks . | . . . . . . . . . Combat Hostiles . | . . . . . . . . . Follow-up Attacks . | . . . . . . . . . Damage Inflicted 12988 | . 558 134 588 222 3127 282 2989 5088 Guns 6236 | . 468 . . 222 2736 282 1931 597 Cannons 2977 | . 90 134 379 . . . . 2374 Explosions 3763 | . . . 209 . 388 . 1049 2117 Melee . | . . . . . . . . . Ramming 9 | . . . . . . . 9 . Kinetic 5096 | . 323 134 379 222 2461 282 952 343 Thermal 3699 | . 235 . . . 278 . 809 2377 Explosive 3493 | . . . 209 . 388 . 1049 1847 Electromagnetic 691 | . . . . . . . 170 521 Impact . | . . . . . . . . . Slashing . | . . . . . . . . . Piercing . | . . . . . . . . . Highest Corruption 15 | . 2 2 . . . . 1 15 Average Corruption 2 | . 2 2 . . . . 1 3 Corruption Purged . | . . . . . . . . . Corruption Blocked . | . . . . . . . . . Effects 51 | . 11 18 . . . . 8 14 Message Errors 20 | . 5 8 . . . . 2 5 Matter Fused 12 | . 3 3 . . . . 2 4 Heat Flow Errors 7 | . 1 3 . . . . 2 1 Energy Discharges 3 | . 1 . . . . . . 2 Data Loss (minor) 7 | . 1 3 . . . . 2 1 Data Loss (major) 1 | . . . . . . . . 1 Misfires 1 | . . 1 . . . . . . Overload Shots 3 | . . . . . . . . 3 Effects 1 | . . . . . . . . 1 Energy Bleed 1 | . . . . . . . . 1 Overflow Damage 80 | . . 1 . . . . 3 76 Projectiles 31 | . . 1 . . . . . 30 Explosions 49 | . . . . . . . 3 46 Melee . | . . . . . . . . . Knockbacks 2 | . 2 . . . . . . . Impact . | . . . . . . . . . Kinetic 2 | . 2 . . . . . . . Secondary . | . . . . . . . . . Self-Inflicted Damage 34 | . . . . . 4 . . 30 Shots 2 | . . . . . 1 . . 1 Rammed . | . . . . . . . . . Targets Rammed 2 | . . . . . . . 2 . Kicked 2 | . . . . . . . 2 . Crushed . | . . . . . . . . . Highest Temperature 583 | . 267 228 171 84 342 . 583 190 Average Temperature 91 | . 77 56 53 39 56 . 226 47 Received Heat Transfer 1378 | . 243 9 60 90 6 . 684 286 Effects 22 | . . . . . . . 22 . Shutdowns 4 | . . . . . . . 4 . Energy Bleed 2 | . . . . . . . 2 . Interference 5 | . . . . . . . 5 . Matter Decay 1 | . . . . . . . 1 . Damage (minor) 3 | . . . . . . . 3 . Damage (major) 6 | . . . . . . . 6 . Damage (core) 1 | . . . . . . . 1 . Siege Activations . | . . . . . . . . . Robots Corrupted 1 | . . . . . . . . 1 Combat Hostiles . | . . . . . . . . . Parts Fried 2 | . . . . . . . . 2 Impact Corruptions . | . . . . . . . . . Robots Melted . | . . . . . . . . . Combat Hostiles . | . . . . . . . . . Parts Melted 14 | . 1 . . 1 . . 5 7 Heat Transferred 6299 | . 703 . . . 508 . 1813 3275 Parts Sabotaged . | . . . . . . . . . Parts Stolen . | . . . . . . . . . Parts Stripped . | . . . . . . . . . Power Chain Reactions . | . . . . . . . . . Missiles Intercepted . | . . . . . . . . . Alert | -11 -10 -10 -9 -9 -9 -8 -8 -7 ------- Run | Scr Mat Min Mat Min Exi Min Mat Fac Peak Influence 535 | . 240 58 341 198 . 100 453 535 Initial 182 | . . . . 54 . . 15 182 Average 147 | . 99 9 191 62 . 32 167 356 Maximum Alert Level 2 | . 1 . 1 . . . 2 2 Low Security (%) 69 | . 91 100 65 100 . 100 63 7 Level 1 16 | . 8 . 34 . . . 24 38 Level 2 14 | . . . . . . . 12 53 Level 3 . | . . . . . . . . . Level 4 . | . . . . . . . . . Level 5 . | . . . . . . . . . High Security . | . . . . . . . . . Max Security . | . . . . . . . . . Squads Dispatched 13 | . 1 . 3 1 . . 4 4 Investigation 3 | . . . 2 . . . 1 . Extermination 3 | . . . . . . . . 3 Reinforcement 6 | . 1 . 1 . . . 3 1 Assault 1 | . . . . 1 . . . . Garrison . | . . . . . . . . . Intercept . | . . . . . . . . . Searches Triggered . | . . . . . . . . . Construction Impeded . | . . . . . . . . . Haulers Reinforced . | . . . . . . . . . Active Scanning Responses . | . . . . . . . . . Cargo Convoy Interrupts 1 | . . . . . . . . 1 Stealth | -11 -10 -10 -9 -9 -9 -8 -8 -7 --------- Run | Scr Mat Min Mat Min Exi Min Mat Fac Distress Signals 6 | . . . 3 . . . . 3 Communications Jammed 16 | . . . . . . . 16 . Distress Signals 1 | . . . . . . . 1 . Times Spotted 184 | . 16 5 11 14 53 5 30 50 Peak Tracking Total 13 | . 5 3 5 5 10 3 7 13 Tactical Retreats 31 | . 2 . 1 2 23 1 1 1 Traps | -11 -10 -10 -9 -9 -9 -8 -8 -7 ------- Run | Scr Mat Min Mat Min Exi Min Mat Fac Traps Triggered 4 | . 2 . 1 . . . . 1 Indirectly . | . . . . . . . . . Trap Hack Attempts . | . . . . . . . . . Triggered . | . . . . . . . . . Disarmed . | . . . . . . . . . Reprogrammed . | . . . . . . . . . Reused . | . . . . . . . . . Traps Extracted . | . . . . . . . . . Installed . | . . . . . . . . . Triggered . | . . . . . . . . . Exploded 3 | . . . . . 3 . . . Machines | -11 -10 -10 -9 -9 -9 -8 -8 -7 ---------- Run | Scr Mat Min Mat Min Exi Min Mat Fac Machines Disabled 15 | . 1 . 1 . 8 . 1 4 Max in Single Turn 1 | . 1 . 1 . 1 . 1 1 Machines Sabotaged . | . . . . . . . . . Garrisons Compromised . | . . . . . . . . . Overloaded Fab Kills . | . . . . . . . . . Hacking | -11 -10 -10 -9 -9 -9 -8 -8 -7 --------- Run | Scr Mat Min Mat Min Exi Min Mat Fac Machines Accessed 14 | . 1 . 1 . 2 . 6 4 Terminals 10 | . 1 . 1 . . . 4 4 Fabricators . | . . . . . . . . . Repair Stations 1 | . . . . . . . 1 . Recycling Units . | . . . . . . . . . Scanalyzers 1 | . . . . . . . 1 . Garrison Access . | . . . . . . . . . Total Hacks 36 | . 3 . 3 . 2 . 20 8 Successful 18 | . 1 . 1 . 2 . 10 4 Failed 18 | . 2 . 2 . . . 10 4 Catastrophic 4 | . . . 1 . . . 2 1 Database Lockouts . | . . . . . . . . . Manual 20 | . 3 . 1 . 1 . 9 6 Terminals 24 | . 3 . 3 . . . 10 8 Fabricators . | . . . . . . . . . Repair Stations 6 | . . . . . . . 6 . Recycling Units . | . . . . . . . . . Scanalyzers 4 | . . . . . . . 4 . Garrison Access . | . . . . . . . . . Terminal Hacks 7 | . 1 . 1 . 2 . 1 2 Record 1 | . . . . . 1 . . . Robot Analysis 1 | . . . . . . . . 1 Prototype ID Bank 1 | . . . . . . . 1 . Level Access Points 1 | . . . . . . . . 1 Hauler Manifests 1 | . . . 1 . . . . . Zone Layout 1 | . 1 . . . . . . . EX-Prototype ID Bank 1 | . . . . . 1 . . . Fabricator Hacks . | . . . . . . . . . Repair Station Hacks 4 | . . . . . . . 4 . Scan Component 2 | . . . . . . . 2 . Repair 2 | . . . . . . . 2 . Recycling Unit Hacks . | . . . . . . . . . Scanalyzer 4 | . . . . . . . 4 . Insert Component 3 | . . . . . . . 3 . Analyze 1 | . . . . . . . 1 . Garrison Access Hacks . | . . . . . . . . . Unauthorized Hacks 3 | . . . . . . . 1 2 Terminals 3 | . . . . . . . 1 2 Botnet 3 | . . . . . . . 1 2 Fabricators . | . . . . . . . . . Repair Stations . | . . . . . . . . . Recycling Units . | . . . . . . . . . Scanalyzers . | . . . . . . . . . Garrison Access . | . . . . . . . . . Data Cores Recovered 1 | . . . . . . . . 1 Used . | . . . . . . . . . Hacking Detections 12 | . 1 . 1 . . . 6 4 Full Trace Events 1 | . . . . . . . 1 . Feedback Events 1 | . . . . . . . 1 . Corruption 1 | . . . . . . . 1 . Feedback Blocked . | . . . . . . . . . Robot Schematics Acquired . | . . . . . . . . . Robots Built . | . . . . . . . . . Authchips . | . . . . . . . . . Time . | . . . . . . . . . Total Robot Build Rating . | . . . . . . . . . Part Schematics Acquired 1 | . . . . . . . 1 . Parts Built . | . . . . . . . . . Authchips . | . . . . . . . . . Time . | . . . . . . . . . Total Part Build Rating . | . . . . . . . . . Parts Repaired 2 | . . . . . . . 2 . Time 112 | . . . . . . . 112 . Parts Recycled . | . . . . . . . . . Recycled Matter . | . . . . . . . . . Retrieved Matter . | . . . . . . . . . Retrieved Components . | . . . . . . . . . Parts Scanalyzed 1 | . . . . . . . 1 . Part Schematics Acquired 1 | . . . . . . . 1 . Parts Damaged . | . . . . . . . . . Bothacking | -11 -10 -10 -9 -9 -9 -8 -8 -7 ------------ Run | Scr Mat Min Mat Min Exi Min Mat Fac Used RIF Installer . | . . . . . . . . . Robots Hacked . | . . . . . . . . . Non-combat . | . . . . . . . . . Combat . | . . . . . . . . . Robot Hacks Applied . | . . . . . . . . . Relay Couplers Released . | . . . . . . . . . Fabnet Peak Effective % . | . . . . . . . . . Robots Rewired . | . . . . . . . . . Allies Hacked . | . . . . . . . . . Hacks Repelled . | . . . . . . . . . Allies | -11 -10 -10 -9 -9 -9 -8 -8 -7 -------- Run | Scr Mat Min Mat Min Exi Min Mat Fac Total Allies 2 | . . . . 2 . . . . Largest Group 2 | . . . . 2 1 . . . Highest-Rated Group 62 | . . . . 62 31 . . . Highest-Rated Ally 31 | . . . . 31 31 . . . Total Orders . | . . . . . . . . . Ally Attacks 44 | . . . . 37 7 . . . Total Damage 455 | . . . . 434 21 . . . Kills 5 | . . . . 5 . . . . Allies Corrupted . | . . . . . . . . . Allies Melted . | . . . . . . . . . Intel | -11 -10 -10 -9 -9 -9 -8 -8 -7 ------- Run | Scr Mat Min Mat Min Exi Min Mat Fac Robot Analysis Total 1 | . . . . . . . . 1 Derelict Logs Recovered 2 | . . 1 . 1 . . . . Drone Launches . | . . . . . . . . . Drone Recoveries . | . . . . . . . . . Exploration | -11 -10 -10 -9 -9 -9 -8 -8 -7 ------------- Run | Scr Mat Min Mat Min Exi Min Mat Fac Turns Passed 11502 | . 800 1531 464 1198 3680 561 1503 1765 Spaces Moved 4514 | 1 328 617 163 484 1404 264 543 710 Core . | . . . . . . . . . Treads 2405 | . 220 617 163 484 921 . . . Legs 2017 | 1 108 . . . 483 264 543 618 Wheels 58 | . . . . . . . . 58 Hover 34 | . . . . . . . . 34 Flight . | . . . . . . . . . Fastest Speed 66 | 120 120 240 240 240 190 190 196 66 Average Speed 216 | 120 200 240 240 240 223 190 196 195 Slowest Speed 330 | 120 260 240 240 240 320 190 196 330 Overloaded Moves . | . . . . . . . . . Propulsion Burnouts . | . . . . . . . . . Robots Hopped . | . . . . . . . . . Cave-ins Triggered . | . . . . . . . . . Exploration Rate (%) 54 | 2 59 96 28 72 87 75 41 30 Regions Visited 8 Branch Regions 4 Pre-discovered Areas 2 | . . . . 1 1 . . . Known Exits Taken . | . . . . . . . . . Unknown Exits Taken 8 | 1 1 1 1 1 1 1 1 . Scrap Searched 7 | . . 2 . 2 . 3 . . Spaces Dug 13 | . . . . . 6 . . 7 Terrain Destroyed 184 | . . 1 22 . 26 . 58 77 Melee . | . . . . . . . . . Projectile 9 | . . 1 2 . . . . 6 AOE 175 | . . . 20 . 26 . 58 71 Terrain Rammed . | . . . . . . . . . Walls Destroyed . | . . . . . . . . . Machines Disabled . | . . . . . . . . . Actions | -11 -10 -10 -9 -9 -9 -8 -8 -7 --------- Run | Scr Mat Min Mat Min Exi Min Mat Fac Total 5507 | . 402 643 213 503 1709 293 823 921 Wait 272 | . 5 2 13 1 79 9 124 39 Move 4506 | . 327 616 162 483 1403 263 542 710 Hop . | . . . . . . . . . Pick Up 79 | . 18 5 7 2 28 1 10 8 Fast Attach 51 | . 7 . 2 1 10 1 16 14 Attach 41 | . . 1 2 1 14 . 8 15 Detach 6 | . . . . . 1 1 3 1 Swap 54 | . 2 2 4 1 14 2 14 15 Drop 85 | . 9 4 9 4 23 1 14 21 Fire 411 | . 34 13 14 10 137 15 90 98 Melee . | . . . . . . . . . Ram . | . . . . . . . . . Kick 2 | . . . . . . . 2 . Crush . | . . . . . . . . . Escape Stasis . | . . . . . . . . . Rewire . | . . . . . . . . . Trap . | . . . . . . . . . Miscellaneous . | . . . . . . . . . Route ------- -11/Scrapyard -10/Materials (discovered 2 exits: *Mat / [*Min]) -10/Mines (discovered 2 exits: *Mat x2) -9/Materials -9/Mines (discovered 3 exits: *Mat x2 / *Exi) -9/Exiles -8/Mines (discovered 2 exits: *Mat x2) -8/Materials -7/Factory (discovered 4 exits: Fac x4) History --------- Turn | Location | Event 1 | -11/Scrapyard | Discovered new exit (range 0) 1 | -11/Scrapyard | Entered Materials 302 | -10/Materials | Build established: Mutant 605 | -10/Materials | Discovered new exit (range 15) 787 | -10/Materials | Discovered new exit (range 7) 801 | -10/Materials | Entered Mines 802 | -10/Mines | Assembled infested the area 806 | -10/Mines | Joined a pair of Derelicts in attacking an 0b10 outpost 807 | -10/Mines | Assisted by a Guerilla fighting off Assembled 894 | -10/Mines | Found a damaged Exp. Sensor Array with a note attached 899 | -10/Mines | Found Prototype Device 1003 | -10/Mines | Discovered new exit (range 10) 1478 | -10/Mines | Discovered new exit (range 14) 1497 | -10/Mines | Learned Materials emergency access door positions 2332 | -10/Mines | Entered Materials 2332 | -9/Materials | Evolved 2 slots: Utility x2 2683 | -9/Materials | Met 8R-AWN 2698 | -9/Materials | Discovered new exit (range 14) 2796 | -9/Materials | Entered Mines 2799 | -9/Mines | Followed 8R-AWN into the Mines 2808 | -9/Mines | Escorted by a lone wolf Derelict 2828 | -9/Mines | Learned location of Storage (-9) 2846 | -9/Mines | A weapon hastily lodged in a ceiling crevice suddenly fell to the ground 2904 | -9/Mines | Met a Derelict testing a Signal Generator 3099 | -9/Mines | Discovered new exit (range 14) 3109 | -9/Mines | Received a Rocket Launcher from a helpful Derelict 3175 | -9/Mines | Discovered new exit (range 5) 3182 | -9/Mines | Learned Materials stockpile data 3796 | -9/Mines | Discovered new exit (range 5) 3994 | -9/Mines | Entered Exiles 3994 | -9/Exiles | Accompanied by 1 ally 4059 | -9/Exiles | Welcomed by 8R-AWN 4093 | -9/Exiles | Met EX-HEX 4177 | -9/Exiles | Met EX-BIN 4222 | -9/Exiles | Aligned with FarCom system 4225 | -9/Exiles | Given EX-Vault access code 4282 | -9/Exiles | Opened EX-Vault 4338 | -9/Exiles | Warned to stay clear of 0b10 Research branches 4405 | -9/Exiles | Met EX-DEC 4487 | -9/Exiles | Visited The Gauntlet 4695 | -9/Exiles | Learned location of Zion (-6) 5059 | -9/Exiles | Learned about 8R-AWN's background 5539 | -9/Exiles | Attacked by the Exiles 5731 | -9/Exiles | Lost 6 parts (2n3u1w) 5801 | -9/Exiles | Destroyed 8R-AWN 5812 | -9/Exiles | Found Prototype Device 5813 | -9/Exiles | Identified AS-neutralizer No. 17b 5844 | -9/Exiles | Found Prototype Ballistic Gun 5852 | -9/Exiles | Found Prototype Ballistic Gun 6008 | -9/Exiles | Found Prototype Protection 6016 | -9/Exiles | Found Prototype Processor 6442 | -9/Exiles | Destroyed EX-DEC 6483 | -9/Exiles | Destroyed EX-BIN 6501 | -9/Exiles | Destroyed EX-HEX 6606 | -9/Exiles | Found Prototype Device 6606 | -9/Exiles | Identified System Purifier 6621 | -9/Exiles | Identified 8R-AWN's Armor/EX 6627 | -9/Exiles | Found Deploy-a-Sentry 6662 | -9/Exiles | Found Prototype Processor 7108 | -9/Exiles | Identified Exp. Sensor Array 7188 | -9/Exiles | Build established: Scavenger-Mutant 7275 | -9/Exiles | Discovered new exit (range 11) 7674 | -9/Exiles | Entered Mines 7976 | -8/Mines | Build established: Mutant 8119 | -8/Mines | Discovered new exit (range 13) 8153 | -8/Mines | Discovered new exit (range 12) 8235 | -8/Mines | Entered Materials 8235 | -8/Materials | Evolved 2 slots: Propulsion x1, Utility x1 8535 | -8/Materials | Build established: Scavenger-Mutant 8725 | -8/Materials | Repaired Cold Fusion Reactor 8758 | -8/Materials | Repaired Hrd. Light Armor Plating 9191 | -8/Materials | Identified 8R-AWN's Boregun (x2) 9263 | -8/Materials | Lost 4 parts (1n2u1w) 9352 | -8/Materials | Lost 4 parts (2u2w) 9574 | -8/Materials | Identified Exp. Core Analyzer 9574 | -8/Materials | Identified Exp. Targeting Computer 9600 | -8/Materials | Discovered new exit (range 10) 9738 | -8/Materials | Entered Factory 9738 | -7/Factory | Evolved 2 slots: Propulsion x1, Utility x1 10271 | -7/Factory | Identified exit to Factory 11366 | -7/Factory | Cargo convoy interrupted 11452 | -7/Factory | Core integrity fell below 50% 11453 | -7/Factory | System corruption reached 10% 11470 | -7/Factory | Core integrity fell below 20% 11495 | -7/Factory | Lost 20 parts (2p4n5u9w) 11503 | -7/Factory | Destroyed by P-60 Hacker with Shock Rifle Last Messages --------------- 11475_ K-01 Serf destroyed. 11475_ K-01 Serf collects debris. 11478_ Acquired Prototype Energy Cannon. 11478_ Identified Cld. Proton Cannon. 11479_ K-01 Serf collects debris. 11485_ Penetrated by Slug. 11486_ K-01 Serf collects debris. 11486_ P-60 Hacker resets H-55 Commando, system corruption cleaned. 11487_ System corrupted: Matter fused (-6). 11490_ K-01 Serf collects debris. 11491_ Acquired Cold Fusion Reactor. 11492_ P-60 Hacker resets H-55 Commando, system corruption cleaned. 11493_ K-01 Serf collects debris. 11494_ Targeting Computer fried. 11494_ H-55 Commando destroyed. 11496_ K-01 Serf collects debris. 11497_ Dropped Hcp. Storage Unit. 11498_ Acquired Power Maul. 11499_ K-01 Serf collects debris. 11500_ Dropped Shock Rifle. Map ----- +----------------------------------------------------+ | ?????????????????????????????????????????????????? | | ?????????????????????????????????????????????????? | | ?????????????????????????????????????????????????? | | ?????????????????????????????????????????????????? | | ???????????????????????? ??????????????????????? | | ?????????????????????+ ??????????????????????? | | ?????????????????????# #??????? #????????????? | | ?????????????????""" # #??????? #????????????? | | ?????????????? """ # #??????? #????????????? | | ?????????????? # #??????? #????????????? | | ?????????????? # #?????? ?????????????? | | ??????????????? # #?????? ?????????????? | | ????????????????!! # #?????? ?????????????? | | ????????????????? a * ##????? ??????????????? | | ??????????????????# = !!=##???? ??????????????? | | ??????????????????# ##% %[|###???/#??????????????? | | ################### %%=%! #??? #??????????????? | | ! #### ###????????????? | | k=%% t]]=g! #????????????? | | ! ]!!!! #????????????? | | %! !=!%!=] #????????????? | | [ ! = ]!!!! #????????????? | | [!%!%!!]= ! #????????????? | | %!!%p*! ##![ #????????????? | | ################ T##==[!!p%k ## #????????????? | | # #???######%!! @= ### ?????????? | | # """ """ #########!* | #?# ??????? | | # """ """ # !!!!! #?# +?????? | | + """ """ # ! ![ #?# #?????? | | # # ! #?# #?????? | | # """ """ # #?#########+##+#?????? | | # """ """ # #??????????????#?????? | | # """ """ # #????????????????????? | | #] # #????????????????????? | | ############ ##########????????????????????? | | ###????????# ??????????????????????????????? | | ??????=% ??????????????????????????????? | | ????? ??????????????????????????????? | | ??? ??????????????????????????????? | | ?? ???????????????????????????????? | | ? ???????????????????????????????? | | ? ???????????????????????????????? | | ?? ???????????????????????????????? | | ###???###########????????????????????????????????? | | ?????????????????????????????????????????????????? | | ?????????????????????????????????????????????????? | | ?????????????????????????????????????????????????? | | ?????????????????????????????????????????????????? | | ?????????????????????????????????????????????????? | | ?????????????????????????????????????????????????? | +----------------------------------------------------+ Best States ------------- Heat Dissipation 62 Energy Generation 19 Energy Capacity 310 Matter Stores 300 Matter Capacity 300 Sight Range 20 Robot Scan Range 19 Terrain Scan Density 10 Jamming Range 16 Additional Mass Support 12 Armor Coverage 825 Resistance: KI 30 Evasion (%) 55 Targeting Accuracy 12 Recoil Reduction 2 Salvage Targeting 1 Item Schematics ----------------- Cmb. Antigrav System | -8/Materials | Scanalyzed Robot Schematics ------------------ None Fabricated ------------ Nothing Alien Tech Used ----------------- None Achievements -------------- None Challenges ------------ None Game ------ Seed SubatomicDrainedPurifier Manual? 0 Play Time 01:01:11 Cumulative 361.2 hours Start 2022.05.27 @ 11:25:43 End 2022.05.27 @ 17:21:30 Sessions 3 Manual Loads 0 Difficulty Rogue Special Mode None Game No. 391 Rogue 391 Adventurer 0 Explorer 0 Win Type - Total 29 Types 18/3/2/1/2/0/3/0/0 Lore% 89 Gallery% 88 Achievement% 80 Wizard Run 0 Options --------- ASCII 0 Keyboard 0 Movement Arrows Keybinds 0 Fullscreen 2 Font 18/SmallcapsGlow Map View 76x50 Tactical HUD 1 Map Filters NONE Filters NONE Steam 1 RUN: 82eef983-11b8-4db0-83e3-3b383122eecc